bitfinex/quotes_BTCUSD_20241117
["timestamp","ask_amount","ask_price","bid_price","bid_amount"]
[1731843091485,0.220512,90698.0,90691.0,0.0008562]
[1731843091486,0.0017134,90706.0,90699.0,0.005]
[1731843091698,0.0017134,90706.0,90692.0,0.1269]
[1731843091699,0.220495,90705.0,90692.0,0.1269]
[1731843091922,0.0017134,90706.0,90692.0,0.1269]
[1731843092155,0.110251,90702.0,90693.0,0.00210077]
[1731843092398,0.220497,90704.0,90693.0,0.00210077]
[1731843092853,0.220495,90705.0,90693.0,0.00210077]
[1731843093307,0.220499,90703.0,90693.0,0.00210077]
[1731843093756,0.110253,90701.0,90693.0,0.00210077]
[1731843093985,0.220502,90702.0,90693.0,0.00210077]
[1731843094199,0.110255,90699.0,90693.0,0.00210077]
[1731843094634,0.220497,90704.0,90693.0,0.00210077]
[1731843094890,0.220502,90702.0,90693.0,0.00210077]
[1731843095139,0.110256,90698.0,90693.0,0.00210077]
[1731843095353,0.220497,90704.0,90693.0,0.00210077]
[1731843095598,0.220499,90703.0,90693.0,0.00210077]
[1731843095816,0.110254,90699.0,90693.0,0.00210077]
[1731843096248,0.0017134,90706.0,90693.0,0.00210077]
[1731843096249,0.0017134,90706.0,90693.0,0.00310077]
[1731843096465,0.220497,90704.0,90693.0,0.00210077]
[1731843096682,0.220497,90704.0,90693.0,0.00310077]
[1731843096910,0.0017134,90706.0,90693.0,0.00310077]
[1731843096911,0.110254,90700.0,90693.0,0.11336177]
[1731843097125,0.110255,90699.0,90693.0,0.11236177]
[1731843097354,0.110255,90699.0,90693.0,0.00310077]
[1731843097623,0.110255,90699.0,90693.0,0.00210077]
[1731843097838,0.110256,90698.0,90693.0,0.00210077]
[1731843098088,0.102256,90698.0,90693.0,0.00310077]
[1731843098301,0.220495,90705.0,90693.0,0.00310077]
[1731843098549,0.110252,90701.0,90694.0,0.11026]
[1731843098787,0.220502,90702.0,90693.0,0.00310077]
[1731843098996,0.11026,90694.0,90693.0,0.001]
[1731843099492,0.0017134,90706.0,90693.0,0.001]
[1731843099742,0.110256,90698.0,90691.0,0.1111192]
[1731843100182,0.220507,90701.0,90691.0,0.1111192]
[1731843100422,0.220509,90699.0,90691.0,0.0008562]
[1731843100638,0.110263,90692.0,90691.0,0.0008562]
[1731843100858,0.21932555,90692.0,90691.0,0.0008562]
[1731843101323,0.34732555,90692.0,90691.0,0.0008562]
[1731843101539,0.35232555,90692.0,90691.0,0.0008562]
[1731843102000,0.35432555,90692.0,90691.0,0.0008562]
[1731843103752,0.35232555,90692.0,90691.0,0.0008562]
[1731843104452,0.35432555,90692.0,90691.0,0.0008562]
[1731843105322,0.35232555,90692.0,90691.0,0.0008562]
[1731843105804,0.35432555,90692.0,90691.0,0.0008562]
[1731843108164,0.35232555,90692.0,90691.0,0.0008562]
[1731843108608,0.34732555,90692.0,90691.0,0.0008562]
[1731843109285,0.35232555,90692.0,90691.0,0.0008562]
[1731843110420,0.35432555,90692.0,90691.0,0.0008562]
[1731843110645,0.35232555,90692.0,90691.0,0.0008562]
[1731843111787,0.35432555,90692.0,90691.0,0.0008562]
[1731843112238,0.40142555,90692.0,90691.0,0.0008562]
[1731843113163,0.39342555,90692.0,90691.0,0.0008562]
[1731843118381,0.57116755,90692.0,90691.0,0.0008562]
[1731843118583,0.47332555,90692.0,90691.0,0.0008562]
[1731843119005,0.57117064,90692.0,90691.0,0.0008562]
[1731843119222,0.47332555,90692.0,90691.0,0.0008562]
[1731843119652,0.57117064,90692.0,90691.0,0.0008562]
[1731843120545,0.47332555,90692.0,90691.0,0.0008562]
[1731843120790,0.57117064,90692.0,90691.0,0.0008562]
[1731843121003,0.47332555,90692.0,90691.0,0.0008562]
[1731843121638,0.57117064,90692.0,90691.0,0.0008562]
[1731843121860,0.82087673,90692.0,90691.0,0.0008562]
[1731843122073,1.06595047,90692.0,90691.0,0.0008562]
[1731843122268,0.82087673,90692.0,90691.0,0.0008562]
[1731843123432,0.50730032,90692.0,90691.0,0.0008562]
[1731843123644,0.81947244,90692.0,90691.0,0.0008562]
[1731843124473,1.06409556,90692.0,90691.0,0.0008562]
[1731843124716,0.81947244,90692.0,90691.0,0.0008562]
[1731843125343,0.83347244,90692.0,90691.0,0.0008562]
[1731843125558,1.07807545,90692.0,90691.0,0.0008562]
[1731843126190,0.83518604,90692.0,90691.0,0.0008562]
[1731843126849,1.07978558,90692.0,90691.0,0.0008562]
[1731843127281,0.83518604,90692.0,90691.0,0.0008562]
[1731843127666,1.07977149,90692.0,90691.0,0.0008562]
[1731843128221,0.82718604,90692.0,90691.0,0.0008562]
[1731843128459,0.82650155,90692.0,90691.0,0.0008562]
[1731843128673,0.82850155,90692.0,90691.0,0.0008562]
[1731843128879,0.82650155,90692.0,90691.0,0.0008562]
[1731843130187,0.82850155,90692.0,90691.0,0.0008562]
[1731843131757,1.02421085,90692.0,90691.0,0.0008562]
[1731843131979,0.82850155,90692.0,90691.0,0.0008562]
[1731843133090,0.51501392,90692.0,90691.0,0.0008562]
[1731843133297,0.82879853,90692.0,90691.0,0.0008562]
[1731843136376,1.02448907,90692.0,90691.0,0.0008562]
[1731843137460,0.82879853,90692.0,90691.0,0.0008562]
[1731843138151,0.49001392,90692.0,90691.0,0.0008562]
[1731843138357,0.44291392,90692.0,90691.0,0.0008562]
[1731843138786,0.44491392,90692.0,90691.0,0.0008562]
[1731843139003,0.43991392,90692.0,90691.0,0.0008562]
[1731843139229,0.43091392,90692.0,90691.0,0.0008562]
[1731843139933,0.45391392,90692.0,90691.0,0.0008562]
[1731843140108,0.45791392,90692.0,90691.0,0.0008562]
[1731843140338,0.37401392,90692.0,90691.0,0.0008562]
[1731843140511,0.36901392,90692.0,90691.0,0.0008562]
[1731843140722,0.36701392,90692.0,90691.0,0.0008562]
[1731843140978,0.37201392,90692.0,90691.0,0.0008562]
[1731843141408,0.36901392,90692.0,90691.0,0.0008562]
[1731843141580,0.24101392,90692.0,90691.0,0.0008562]
[1731843141812,0.23901392,90692.0,90691.0,0.0008562]
[1731843142259,0.12995137,90692.0,90691.0,0.0008562]
[1731843142449,0.12995137,90692.0,90691.0,0.0504562]
[1731843142450,0.0017136,90692.0,90691.0,0.0504562]
[1731843142809,0.0017136,90692.0,90691.0,0.05242527]
[1731843142810,0.1119766,90692.0,90691.0,0.05242527]
[1731843143021,0.1039766,90692.0,90691.0,0.05242527]
[1731843145469,0.0017136,90698.0,90691.0,0.05242527]
[1731843145877,0.110257,90697.0,90692.0,0.110262]
[1731843146111,0.110257,90697.0,90693.0,0.00200784]
[1731843146326,0.0017136,90698.0,90693.0,0.00200784]
[1731843146547,0.0017136,90698.0,90697.0,0.110257]
[1731843146984,0.0017136,90698.0,90697.0,0.24113295]
[1731843148890,0.0017136,90698.0,90697.0,0.13087595]
[1731843149110,0.0017136,90698.0,90697.0,0.24113295]
[1731843150185,0.0017136,90698.0,90697.0,0.13087595]
[1731843150411,0.1119696,90698.0,90697.0,0.00187595]
[1731843150611,0.22103215,90698.0,90697.0,0.00241918]
[1731843150820,0.110263,90692.0,90691.0,0.0008562]
[1731843151026,0.21932555,90692.0,90691.0,0.0008562]
[1731843154727,0.10906255,90692.0,90655.0,0.09975436]
[1731843154938,0.10906255,90692.0,90682.0,0.110274]
[1731843155172,0.110271,90686.0,90683.0,0.00242714]
[1731843155604,0.110271,90686.0,90681.0,0.110276]
[1731843155809,0.110271,90686.0,90684.0,0.00242005]
[1731843156029,0.110271,90686.0,90681.0,0.110276]
[1731843156444,0.110271,90686.0,90682.0,0.00242352]
[1731843156836,0.220531,90690.0,90677.0,0.220561]
[1731843157038,0.110272,90685.0,90683.0,0.00242179]
[1731843157260,0.110272,90685.0,90679.0,0.110278]
[1731843157471,0.110272,90685.0,90684.0,0.00241832]
[1731843157677,0.110272,90685.0,90680.0,0.110277]
[1731843157878,0.110272,90685.0,90684.0,0.00241832]
[1731843158082,0.102272,90685.0,90680.0,0.110277]
[1731843158208,0.102272,90685.0,90677.0,0.220561]
[1731843158209,0.220531,90690.0,90684.0,0.00241832]
[1731843158423,0.0017136,90698.0,90680.0,0.005]
[1731843158643,0.110261,90694.0,90687.0,0.220536]
[1731843158866,0.110259,90695.0,90690.0,0.110265]
[1731843159280,0.110259,90695.0,90691.0,0.00245577]
[1731843159602,0.220514,90697.0,90691.0,0.00245577]
[1731843159603,0.330771,90697.0,90691.0,0.00245577]
[1731843159805,0.0017136,90698.0,90691.0,0.00245577]
[1731843160178,0.0017136,90698.0,90697.0,0.110257]
[1731843160578,0.0017136,90698.0,90697.0,0.11268398]
[1731843161527,0.0017136,90698.0,90697.0,0.158057]
[1731843163059,0.0017136,90698.0,90697.0,0.0478]
[1731843163314,0.0017136,90698.0,90689.0,0.0478]
[1731843163540,0.110274,90683.0,90670.0,0.110289]
[1731843163748,0.21933655,90683.0,90663.0,0.220595]
[1731843163955,0.30033655,90683.0,90666.0,0.1464184]
[1731843164164,0.30033655,90683.0,90669.0,0.11029]
[1731843164369,0.30033655,90683.0,90670.0,0.110289]
[1731843166107,0.30033655,90683.0,90667.0,0.220587]
[1731843166309,0.30033655,90683.0,90669.0,0.11029]
[1731843167245,0.30033655,90683.0,90672.0,0.220573]
[1731843167471,0.30033655,90683.0,90667.0,0.220587]
[1731843168714,0.30033655,90683.0,90671.0,0.110288]
[1731843168922,0.30033655,90683.0,90669.0,0.11029]
[1731843170024,0.30033655,90683.0,90664.0,0.13213476]
[1731843170198,0.30033655,90683.0,90665.0,0.110295]
[1731843170470,0.30033655,90683.0,90666.0,0.110293]
[1731843170672,0.30033655,90683.0,90668.0,0.110292]
[1731843170874,0.30033655,90683.0,90663.0,0.03552938]
[1731843171126,0.30033655,90683.0,90653.0,0.2223318]
[1731843171127,0.30033655,90683.0,90660.0,0.005]
[1731843171319,0.32833655,90683.0,90659.0,0.00011022]
[1731843171544,0.52178775,90683.0,90659.0,0.00011022]
[1731843171768,0.5153822,90683.0,90659.0,0.00011022]
[1731843172179,0.5153822,90683.0,90656.0,0.00011022]
[1731843172942,0.5093822,90683.0,90656.0,0.00011022]
[1731843173617,0.5073822,90683.0,90656.0,0.00011022]
[1731843177359,0.5073822,90683.0,90657.0,0.110305]
[1731843177582,0.5073822,90683.0,90658.0,0.00011022]
[1731843178846,0.5073822,90683.0,90657.0,0.00011022]
[1731843179293,0.5023822,90683.0,90657.0,0.00011022]
[1731843179522,0.5073822,90683.0,90657.0,0.00011022]
[1731843179971,0.5073822,90683.0,90656.0,0.00011022]
[1731843180464,0.5073822,90683.0,90656.0,0.22072322]
[1731843181130,0.5073822,90683.0,90657.0,0.00011022]
[1731843181618,0.29233655,90683.0,90669.0,0.11029]
[1731843181844,0.29233655,90683.0,90662.0,0.110299]
[1731843182288,0.29233655,90683.0,90661.0,0.1103]
[1731843182494,0.29233655,90683.0,90663.0,0.110297]
[1731843182679,0.29233655,90683.0,90665.0,0.220592]
[1731843183325,0.29233655,90683.0,90660.0,0.00011022]
[1731843183326,0.29233655,90683.0,90664.0,0.220593]
[1731843183747,0.29233655,90683.0,90667.0,0.110293]
[1731843184209,0.29233655,90683.0,90664.0,0.220593]
[1731843184416,0.21133655,90683.0,90673.0,0.110286]
[1731843185278,0.21133655,90683.0,90673.0,0.110285]
[1731843185554,0.21304935,90683.0,90668.0,0.220584]
[1731843185776,0.21304935,90683.0,90672.0,0.110287]
[1731843186003,0.21304935,90683.0,90671.0,0.110287]
[1731843186867,0.21304935,90683.0,90669.0,0.11029]
[1731843187091,0.21304935,90683.0,90662.0,0.110299]
[1731843187328,0.21304935,90683.0,90663.0,0.220596]
[1731843187542,0.21304935,90683.0,90665.0,0.110295]
[1731843187991,0.20504935,90683.0,90666.0,0.110294]
[1731843188221,0.20504935,90683.0,90661.0,0.1103]
[1731843188465,0.35524935,90683.0,90660.0,0.00011022]
[1731843188686,0.46024935,90683.0,90659.0,0.00011022]
[1731843189367,0.46224935,90683.0,90659.0,0.00011022]
[1731843189791,0.46224935,90683.0,90656.0,0.00011022]
[1731843190418,0.46024935,90683.0,90656.0,0.00011022]
[1731843190836,0.43224935,90683.0,90656.0,0.00011022]
[1731843191031,0.43224935,90683.0,90656.0,0.04851022]
[1731843191245,0.43224935,90683.0,90661.0,0.1103]
[1731843191466,0.43224935,90683.0,90657.0,0.00011022]
[1731843191680,0.43224935,90683.0,90658.0,0.110303]
[1731843191889,0.43224935,90683.0,90662.0,0.110298]
[1731843192111,0.43224935,90683.0,90658.0,0.220608]
[1731843192112,0.43224935,90683.0,90664.0,0.110297]
[1731843192543,0.43224935,90683.0,90662.0,0.110299]
[1731843192753,0.33224935,90683.0,90660.0,0.00011022]
[1731843192985,0.28714935,90683.0,90663.0,0.110297]
[1731843193716,0.28714935,90683.0,90669.0,0.11029]
[1731843193917,0.28714935,90683.0,90663.0,0.220595]
[1731843194342,0.46764935,90683.0,90682.0,8e-07]
[1731843194577,0.46764935,90683.0,90660.0,0.00011022]
[1731843194578,0.189401,90661.0,90660.0,0.00011022]
[1731843195285,0.110307,90656.0,90653.0,0.0017118]
[1731843200077,0.220607,90659.0,90653.0,0.0017118]
[1731843200078,0.110303,90659.0,90653.0,0.0017118]
[1731843200278,0.110307,90656.0,90653.0,0.0017118]
[1731843203004,0.102307,90656.0,90653.0,0.0017118]
[1731843203721,0.220611,90658.0,90653.0,0.0017118]
[1731843203948,0.21936955,90656.0,90653.0,0.0017118]
[1731843204178,0.110307,90656.0,90653.0,0.0017118]
[1731843207443,0.0791,90667.0,90653.0,0.0017118]
[1731843207643,0.110294,90667.0,90657.0,0.110305]
[1731843207857,0.22057,90674.0,90653.0,0.0017118]
[1731843207858,0.0791,90675.0,90656.0,0.00210083]
[1731843208061,0.0791,90675.0,90653.0,0.0017118]
[1731843208062,0.110294,90667.0,90658.0,0.00209785]
[1731843208264,0.110294,90667.0,90657.0,0.11241325]
[1731843208471,0.110291,90669.0,90659.0,0.11274776]
[1731843208684,0.110292,90668.0,90658.0,0.00244749]
[1731843208926,0.110288,90671.0,90660.0,0.110301]
[1731843209136,0.110288,90672.0,90660.0,0.021]
[1731843209358,0.110288,90672.0,90662.0,0.110299]
[1731843209775,0.11029,90670.0,90663.0,0.00242581]
[1731843210112,0.0791,90681.0,90662.0,0.110299]
[1731843210113,0.22056,90678.0,90662.0,0.110299]
[1731843210336,0.110287,90673.0,90664.0,0.00242061]
[1731843210591,0.110287,90672.0,90663.0,0.00243274]
[1731843210799,0.110287,90672.0,90665.0,0.00242408]
[1731843211165,0.110289,90671.0,90660.0,0.16696831]
[1731843211628,0.110289,90671.0,90661.0,0.11272655]
[1731843212141,0.110289,90671.0,90661.0,0.110299]
[1731843212410,0.220565,90676.0,90660.0,0.05666631]
[1731843212626,0.18816255,90681.0,90660.0,0.05666631]
[1731843212627,0.220567,90675.0,90663.0,0.110298]
[1731843213267,0.220567,90675.0,90664.0,0.00242928]
[1731843213506,0.0017128,90682.0,90664.0,0.00963507]
[1731843213730,0.0017128,90682.0,90673.0,0.110285]
[1731843213933,0.0017128,90682.0,90664.0,0.005]
[1731843214136,0.220555,90680.0,90665.0,0.220592]
[1731843214339,0.11028,90678.0,90669.0,0.11029]
[1731843214548,0.0017128,90682.0,90671.0,0.110288]
[1731843215160,0.0017128,90682.0,90666.0,0.220589]
[1731843215369,0.1119888,90682.0,90671.0,0.110287]
[1731843215904,0.110276,90681.0,90671.0,0.110287]
[1731843216404,0.0017128,90682.0,90675.0,0.110283]
[1731843216845,0.0017128,90682.0,90672.0,0.220573]
[1731843216846,0.0017128,90682.0,90673.0,0.110285]
[1731843217293,0.0017128,90682.0,90674.0,0.00220554]
[1731843217505,0.0017128,90682.0,90675.0,0.0498]
[1731843217726,0.0017128,90682.0,90681.0,0.110276]
[1731843218152,0.0017128,90682.0,90676.0,0.220565]
[1731843218153,0.220524,90693.0,90676.0,0.220565]
[1731843218389,0.151927,90714.0,90683.0,0.110273]
[1731843218390,0.110264,90692.0,90683.0,0.110273]
[1731843218592,0.0017136,90699.0,90676.0,0.005]
[1731843218802,0.0017136,90699.0,90679.0,0.00220538]
[1731843218995,0.11026,90695.0,90677.0,0.10906255]
[1731843219144,0.1119706,90698.0,90687.0,0.110269]
[1731843219353,0.1119706,90698.0,90688.0,0.110267]
[1731843219354,0.110258,90697.0,90688.0,0.110267]
[1731843219563,0.0017136,90698.0,90684.0,0.220544]
[1731843219564,0.0017136,90698.0,90697.0,0.110257]
[1731843220592,0.0017136,90698.0,90689.0,0.220533]
[1731843220951,0.0017136,90698.0,90694.0,0.11026]
[1731843221179,0.0017136,90698.0,90691.0,0.220529]
[1731843221399,0.0017136,90698.0,90696.0,0.110258]
[1731843221624,0.0017136,90698.0,90688.0,0.005]
[1731843221847,0.0017136,90698.0,90696.0,0.110257]
[1731843222057,0.0017136,90698.0,90697.0,0.22431955]
[1731843223036,0.0017136,90698.0,90694.0,0.0216871]
[1731843223492,0.0788,90697.0,90688.0,0.03503033]
[1731843223727,0.110263,90692.0,90688.0,0.03503033]
[1731843224155,0.110261,90694.0,90688.0,0.03503033]
[1731843224384,0.220526,90692.0,90688.0,0.03503033]
[1731843224595,0.0788,90697.0,90680.0,0.00220548]
[1731843224842,0.0788,90697.0,90680.0,0.03649236]
[1731843225090,0.0788,90697.0,90678.0,0.110279]
[1731843225091,0.110268,90688.0,90678.0,0.11192773]
[1731843225530,0.110268,90688.0,90679.0,0.110278]
[1731843225739,0.220533,90689.0,90678.0,0.03662148]
[1731843225945,0.220526,90692.0,90678.0,0.03497275]
[1731843226166,0.110271,90685.0,90674.0,0.22057]
[1731843226375,0.110271,90685.0,90674.0,0.22221873]
[1731843226581,0.110271,90685.0,90674.0,0.22057]
[1731843226788,0.110271,90685.0,90676.0,0.110281]
[1731843227002,0.110283,90676.0,90672.0,0.1]
[1731843227217,0.10906255,90696.0,90671.0,0.11193673]
[1731843227423,0.220528,90692.0,90672.0,0.10164873]
[1731843227667,0.220548,90684.0,90677.0,0.00164873]
[1731843227877,0.110273,90684.0,90677.0,0.00164873]
[1731843228095,0.10906255,90696.0,90677.0,0.00164873]
[1731843228096,0.110272,90685.0,90677.0,0.00164873]
[1731843228316,0.110273,90684.0,90677.0,0.00164873]
[1731843228519,0.10906255,90694.0,90677.0,0.00164873]
[1731843228520,0.110274,90683.0,90677.0,0.00164873]
[1731843228724,0.10906255,90694.0,90677.0,0.00164873]
[1731843228928,0.110277,90681.0,90677.0,0.00164873]
[1731843229560,0.220524,90693.0,90677.0,0.00164873]
[1731843229803,0.220546,90684.0,90677.0,0.00164873]
[1731843230012,0.110275,90682.0,90677.0,0.00164873]
[1731843230458,0.32958655,90693.0,90677.0,0.00164873]
[1731843230694,0.32958655,90693.0,90673.0,0.00164873]
[1731843230695,0.110278,90680.0,90673.0,0.00164873]
[1731843230902,0.110278,90680.0,90672.0,0.10164873]
[1731843232046,0.110274,90683.0,90677.0,0.00164873]
[1731843232253,0.220543,90685.0,90677.0,0.00164873]
[1731843232469,0.110277,90681.0,90677.0,0.00164873]
[1731843233092,0.212548,90683.0,90677.0,0.00164873]
[1731843233299,0.110277,90681.0,90677.0,0.00164873]
[1731843233411,0.212548,90683.0,90677.0,0.00164873]
[1731843233619,0.110277,90681.0,90677.0,0.00164873]
[1731843234367,0.001713,90692.0,90677.0,0.00164873]
[1731843234566,0.110273,90684.0,90677.0,0.00164873]
[1731843234774,0.110271,90685.0,90677.0,0.00164873]
[1731843234944,0.220541,90686.0,90677.0,0.00164873]
[1731843235160,0.110274,90683.0,90677.0,0.00164873]
[1731843235379,0.001713,90692.0,90678.0,0.22056]
[1731843235556,0.001713,90692.0,90680.0,0.220555]
[1731843235557,0.111976,90692.0,90680.0,0.220555]
[1731843235829,0.111976,90692.0,90679.0,0.00220534]
[1731843235830,0.110264,90691.0,90683.0,0.110273]
[1731843236127,0.001713,90692.0,90685.0,0.220541]
[1731843236329,0.001713,90692.0,90686.0,0.220541]
[1731843236478,0.001713,90692.0,90690.0,0.110265]
[1731843237652,0.001713,90692.0,90688.0,0.110267]
[1731843238086,0.001713,90692.0,90689.0,0.110266]
[1731843240049,0.001713,90692.0,90690.0,0.110265]
[1731843240279,0.001713,90692.0,90689.0,0.110266]
[1731843240737,0.001713,90692.0,90686.0,0.02218545]
[1731843241176,0.001713,90692.0,90686.0,0.13245545]
[1731843241386,0.001713,90692.0,90687.0,0.110269]
[1731843241836,0.001713,90692.0,90686.0,0.02218545]
[1731843241837,0.001713,90692.0,90688.0,0.110268]
[1731843243143,0.001713,90692.0,90690.0,0.110264]
[1731843243372,0.001713,90692.0,90686.0,0.02218545]
[1731843243586,0.001713,90692.0,90688.0,0.220536]
[1731843243794,0.001713,90692.0,90691.0,0.110264]
[1731843244025,0.00165577,90692.0,90691.0,0.110264]
[1731843245125,0.00165577,90692.0,90691.0,0.21932655]
[1731843246473,0.00165577,90692.0,90691.0,0.22597528]
[1731843246639,0.00165577,90692.0,90691.0,0.37497528]
[1731843247316,0.00165577,90692.0,90691.0,0.37697528]
[1731843248203,0.07579637,90718.0,90707.0,0.00164873]
[1731843248429,0.16538129,90712.0,90708.0,0.220487]
[1731843248665,0.110232,90717.0,90709.0,0.110241]
[1731843248888,0.110232,90717.0,90707.0,0.00164873]
[1731843248889,0.220465,90717.0,90707.0,0.00164873]
[1731843249123,0.110235,90715.0,90708.0,0.110243]
[1731843249352,0.07579637,90718.0,90705.0,0.00164873]
[1731843249592,0.07579637,90718.0,90711.0,0.110239]
[1731843249823,0.220465,90717.0,90707.0,0.00164873]
[1731843250051,0.220465,90717.0,90706.0,0.110246]
[1731843250280,0.110237,90714.0,90703.0,0.220499]
[1731843250536,0.220465,90717.0,90694.0,0.225521]
[1731843250758,0.110239,90712.0,90705.0,0.110246]
[1731843250951,0.110236,90714.0,90706.0,0.110246]
[1731843251202,0.110234,90716.0,90703.0,0.24231502]
[1731843251441,0.07579637,90718.0,90703.0,0.24231502]
[1731843251675,0.110235,90715.0,90708.0,0.110243]
[1731843252358,0.110238,90713.0,90704.0,0.220497]
[1731843252816,0.110238,90713.0,90706.0,0.110246]
[1731843253050,0.07579637,90718.0,90717.0,0.110232]
[1731843253282,0.07579637,90718.0,90703.0,0.02181802]
[1731843253541,0.07579637,90718.0,90717.0,0.110232]
[1731843255632,0.1249,90724.0,90712.0,0.220477]
[1731843255861,0.1249,90724.0,90722.0,0.110226]
[1731843256349,0.1249,90724.0,90723.0,0.110225]
[1731843256588,0.0752,90724.0,90723.0,0.110225]
[1731843258257,0.0752,90724.0,90723.0,0.11242941]
[1731843258509,0.0008565,90728.0,90727.0,0.11022]
[1731843261815,0.0008565,90728.0,90723.0,0.03584192]
[1731843261816,0.0458,90727.0,90723.0,0.03584192]
[1731843262047,0.0458,90727.0,90718.0,0.11023]
[1731843262048,0.0752,90726.0,90718.0,0.11023]
[1731843262316,0.0752,90726.0,90714.0,0.110235]
[1731843262527,0.110226,90723.0,90704.0,0.005]
[1731843262758,0.110226,90723.0,90715.0,0.110234]
[1731843262992,0.110227,90722.0,90715.0,0.110234]
[1731843263221,0.110227,90722.0,90712.0,0.220476]
[1731843263222,0.110227,90722.0,90714.0,0.110236]
[1731843263749,0.0752,90725.0,90710.0,0.02221807]
[1731843263981,0.0752,90715.0,90712.0,0.110238]
[1731843264213,0.0752,90715.0,90713.0,0.110237]
[1731843264448,0.0752,90715.0,90710.0,0.220482]
[1731843264913,0.0752,90715.0,90711.0,0.110239]
[1731843265154,0.0752,90715.0,90714.0,0.110236]
[1731843267950,0.0752,90715.0,90711.0,0.220478]
[1731843268194,0.0752,90715.0,90714.0,0.110236]
[1731843268444,0.110224,90724.0,90712.0,0.330715]
[1731843268681,0.0752,90726.0,90709.0,0.220485]
[1731843268930,0.185422,90726.0,90719.0,0.110229]
[1731843269846,0.0752,90726.0,90719.0,0.110229]
[1731843270115,0.185422,90726.0,90719.0,0.110229]
[1731843270577,0.0752,90726.0,90721.0,0.110227]
[1731843271016,0.0752,90726.0,90718.0,0.220462]
[1731843271017,0.0752,90726.0,90719.0,0.110229]
[1731843271484,0.0752,90726.0,90710.0,0.10906255]
[1731843271717,0.0752,90726.0,90725.0,0.110223]
[1731843272444,0.0008565,90728.0,90724.0,0.00220435]
[1731843272667,0.0008565,90728.0,90723.0,0.220449]
[1731843272668,0.0008565,90728.0,90727.0,0.11022]
[1731843274879,0.0008565,90728.0,90724.0,0.110223]
[1731843275085,0.0008565,90728.0,90725.0,0.110223]
[1731843275570,0.0008565,90728.0,90726.0,0.110221]
[1731843276022,0.0008565,90728.0,90706.0,0.270391]
[1731843276235,0.220446,90725.0,90702.0,0.0058562]
[1731843276441,0.110229,90720.0,90712.0,0.110238]
[1731843276697,0.0784,90726.0,90704.0,0.1]
[1731843276927,0.110226,90723.0,90704.0,0.1]
[1731843277151,0.110224,90725.0,90714.0,0.220472]
[1731843277387,0.0784,90726.0,90714.0,0.220472]
[1731843277607,0.0784,90726.0,90720.0,0.110228]
[1731843277840,0.110223,90725.0,90717.0,0.110232]
[1731843278070,0.102223,90725.0,90717.0,0.110232]
[1731843278725,0.188622,90726.0,90717.0,0.110232]
[1731843278942,0.0784,90726.0,90719.0,0.11023]
[1731843279178,0.188622,90726.0,90717.0,0.110232]
[1731843279837,0.188622,90726.0,90709.0,0.10906255]
[1731843279838,0.0784,90726.0,90711.0,0.22048]
[1731843280097,0.0784,90726.0,90717.0,0.110232]
[1731843280098,0.110223,90725.0,90717.0,0.110232]
[1731843280296,0.188622,90726.0,90713.0,0.330712]
[1731843280501,0.188622,90726.0,90717.0,0.110232]
[1731843280941,0.188622,90726.0,90709.0,0.10906255]
[1731843280942,0.0784,90726.0,90711.0,0.0364219]
[1731843281152,0.0784,90726.0,90702.0,0.0058562]
[1731843281153,0.110231,90718.0,90717.0,0.001712]
[1731843281379,0.236231,90718.0,90717.0,0.001712]
[1731843285094,0.126,90718.0,90717.0,0.001712]
[1731843285989,0.236231,90718.0,90717.0,0.001712]
[1731843286217,0.126,90718.0,90717.0,0.001712]
[1731843287298,0.0784,90718.0,90717.0,0.111944]
[1731843287727,0.000856,90726.0,90725.0,0.110223]
[1731843287939,0.000856,90726.0,90720.0,0.220458]
[1731843288149,0.0784,90725.0,90721.0,0.220456]
[1731843288379,0.0784,90725.0,90717.0,0.2588138]
[1731843288621,0.0784,90725.0,90723.0,0.110225]
[1731843289802,0.0784,90725.0,90719.0,0.22046]
[1731843290024,0.0784,90725.0,90724.0,0.110224]
[1731843293144,0.0704,90725.0,90724.0,0.110224]
[1731843293628,0.000856,90726.0,90725.0,0.110223]
[1731843294921,0.000856,90726.0,90725.0,0.1348681]
[1731843297593,0.000856,90726.0,90725.0,0.13266403]
[1731843300177,0.000856,90726.0,90725.0,0.23151964]
[1731843300414,0.000856,90726.0,90725.0,0.34778631]
[1731843300652,0.000856,90726.0,90725.0,0.24672658]
[1731843300883,0.000856,90726.0,90725.0,0.24893066]
[1731843301120,0.000856,90726.0,90725.0,0.24672658]
[1731843301325,0.000856,90726.0,90725.0,0.34672658]
[1731843303548,0.000856,90726.0,90725.0,0.02746621]
[1731843303779,0.000856,90726.0,90725.0,0.23768921]
[1731843304638,0.000856,90726.0,90725.0,0.25979306]
[1731843305779,0.000856,90726.0,90725.0,0.25650506]
[1731843305999,0.080256,90726.0,90725.0,0.23403885]
[1731843306212,0.080256,90726.0,90725.0,0.001712]
[1731843306706,0.190477,90726.0,90725.0,0.001712]
[1731843307137,0.238977,90726.0,90725.0,0.001712]
[1731843308210,0.230977,90726.0,90725.0,0.001712]
[1731843310588,0.120756,90726.0,90725.0,0.001712]
[1731843310832,0.072256,90726.0,90725.0,0.111935]
[1731843311506,0.182477,90726.0,90725.0,0.001712]
[1731843312420,0.230977,90726.0,90725.0,0.001712]
[1731843318473,0.231833,90726.0,90725.0,0.001712]
[1731843320421,0.34089555,90726.0,90725.0,0.001712]
[1731843323158,0.33289555,90726.0,90725.0,0.001712]
[1731843328202,0.33789555,90726.0,90725.0,0.001712]
[1731843330362,0.33781372,90726.0,90725.0,0.001712]
[1731843331309,0.22875117,90726.0,90725.0,0.001712]
[1731843331525,0.22375117,90726.0,90725.0,0.001712]
[1731843331991,0.17525117,90726.0,90725.0,0.001712]
[1731843332239,0.000856,90726.0,90725.0,0.111935]
[1731843332467,0.000856,90726.0,90725.0,0.15959238]
[1731843332698,0.000856,90726.0,90725.0,0.11591889]
[1731843334601,0.000856,90726.0,90725.0,0.13833751]
[1731843336898,0.000856,90726.0,90725.0,0.02811451]
[1731843337140,0.083756,90726.0,90720.0,0.220458]
[1731843337370,0.083756,90726.0,90725.0,0.11401848]
[1731843337580,0.083756,90726.0,90725.0,0.110223]
[1731843338014,0.075756,90726.0,90725.0,0.11401848]
[1731843338887,0.075756,90726.0,90725.0,0.13571157]
[1731843341371,0.0008565,90728.0,90725.0,0.13571157]